[Event "Titled Tuesday Blitz August 22 Late 2023"]
[White "Haszon, David"]
[Black "Yanchenko, Roman"]
[WhiteFideId "733610"]
[BlackFideId "4137329"]
[WhiteElo "2449"]
[BlackElo "2830"]
[Result "0-1"]
[Round "1"]
[TimeControl "180+1"]
[Date "2023.08.22"]
[WhiteClock "0:00:07"]
[BlackClock "0:00:21"]
[Board "63"]

1. d4 {[%clk 0:02:59]}  d5 {[%clk 0:03:00]} 2. Bf4 {[%clk 0:02:58]}  Nf6 {[%clk 0:02:59]} 3. e3 {[%clk 0:02:58]}  Bf5 {[%clk 0:03:00]} 4. c4 {[%clk 0:02:56]}  c6 {[%clk 0:03:00]} 5. Qb3 {[%clk 0:02:55]}  Qb6 {[%clk 0:03:00]} 6. c5 {[%clk 0:02:51]}  Qxb3 {[%clk 0:03:00]} 7. axb3 {[%clk 0:02:51]}  Bxb1 {[%clk 0:03:00]} 8. Rxb1 {[%clk 0:02:51]}  Nbd7 {[%clk 0:03:00]} 9. Ra1 {[%clk 0:02:45]}  a6 {[%clk 0:03:00]} 10. h3 {[%clk 0:02:37]}  Ne4 {[%clk 0:02:49]} 11. Nf3 {[%clk 0:02:31]}  f6 {[%clk 0:02:46]} 12. b4 {[%clk 0:02:14]}  Rc8 {[%clk 0:02:45]} 13. Bd3 {[%clk 0:02:08]}  g5 {[%clk 0:02:43]} 14. Bh2 {[%clk 0:02:04]}  Bg7 {[%clk 0:02:42]} 15. Bxe4 {[%clk 0:01:57]}  dxe4 {[%clk 0:02:42]} 16. Nd2 {[%clk 0:01:58]}  f5 {[%clk 0:02:43]} 17. g4 {[%clk 0:01:55]}  e5 {[%clk 0:02:20]} 18. gxf5 {[%clk 0:01:44]}  exd4 {[%clk 0:02:20]} 19. Nxe4 {[%clk 0:01:44]}  O-O {[%clk 0:02:15]} 20. Nd6 {[%clk 0:01:38]}  Rb8 {[%clk 0:02:14]} 21. e4 {[%clk 0:01:30]}  Ne5 {[%clk 0:02:02]} 22. Bxe5 {[%clk 0:01:27]}  Bxe5 {[%clk 0:02:02]} 23. Nc4 {[%clk 0:01:28]}  Rbe8 {[%clk 0:01:59]} 24. f3 {[%clk 0:01:23]}  Bf4 {[%clk 0:01:46]} 25. Ke2 {[%clk 0:01:21]}  Rxf5 {[%clk 0:01:27]} 26. Kd3 {[%clk 0:01:17]}  Rf7 {[%clk 0:01:20]} 27. Rhg1 {[%clk 0:01:10]}  Rd8 {[%clk 0:01:10]} 28. Rad1 {[%clk 0:01:08]}  Kg7 {[%clk 0:01:07]} 29. Rg4 {[%clk 0:01:08]}  h5 {[%clk 0:01:04]} 30. Rg2 {[%clk 0:01:08]}  h4 {[%clk 0:01:04]} 31. Rf1 {[%clk 0:01:03]}  Kh6 {[%clk 0:01:01]} 32. Rg4 {[%clk 0:01:03]}  Bg3 {[%clk 0:00:59]} 33. Nd2 {[%clk 0:00:55]}  Kh5 {[%clk 0:00:49]} 34. Nb3 {[%clk 0:00:47]}  Kh6 {[%clk 0:00:45]} 35. Nd2 {[%clk 0:00:31]}  Be5 {[%clk 0:00:44]} 36. Nc4 {[%clk 0:00:28]}  Bf4 {[%clk 0:00:45]} 37. Rfg1 {[%clk 0:00:27]}  Bg3 {[%clk 0:00:45]} 38. Rf1 {[%clk 0:00:27]}  Rdf8 {[%clk 0:00:45]} 39. Nd2 {[%clk 0:00:26]}  Bf4 {[%clk 0:00:45]} 40. Nc4 {[%clk 0:00:22]}  Bg3 {[%clk 0:00:35]} 41. Nd2 {[%clk 0:00:19]}  Be5 {[%clk 0:00:34]} 42. Rg2 {[%clk 0:00:17]}  Kh5 {[%clk 0:00:32]} 43. Rfg1 {[%clk 0:00:17]}  Rxf3+ {[%clk 0:00:29]} 44. Nxf3 {[%clk 0:00:17]}  Rxf3+ {[%clk 0:00:30]} 45. Kc4 {[%clk 0:00:16]}  Bf4 {[%clk 0:00:23]} 46. e5 {[%clk 0:00:15]}  Rxh3 {[%clk 0:00:21]} 47. Re2 {[%clk 0:00:13]}  Re3 {[%clk 0:00:20]} 48. Rxe3 {[%clk 0:00:13]}  dxe3 {[%clk 0:00:21]} 49. e6 {[%clk 0:00:13]}  Kg6 {[%clk 0:00:21]} 50. Rd1 {[%clk 0:00:11]}  h3 {[%clk 0:00:21]} 51. e7 {[%clk 0:00:09]}  Kf7 {[%clk 0:00:21]} 52. Rd7 {[%clk 0:00:09]}  h2 {[%clk 0:00:20]} 53. e8=Q+ {[%clk 0:00:08]}  Kxe8 {[%clk 0:00:21]} 54. Rh7 {[%clk 0:00:09]}  e2 {[%clk 0:00:21]} 55. Kd3 {[%clk 0:00:07]}  e1=Q {[%clk 0:00:21]} 0-1


[Site "https://www.chess.com"]

[Event "Titled Tuesday Blitz August 22 Late 2023"]
[White "Sanhueza, Cristian"]
[Black "Putnam, Liam"]
[WhiteFideId "116815"]
[BlackFideId "30938279"]
[WhiteElo "2447"]
[BlackElo "2818"]
[Result "1-0"]
[Round "1"]
[TimeControl "180+1"]
[Date "2023.08.22"]
[WhiteClock "0:00:28"]
[BlackClock "0:00:10"]
[Board "65"]

1. e4 {[%clk 0:02:15]}  e5 {[%clk 0:02:58]} 2. Nf3 {[%clk 0:01:02]}  Nc6 {[%clk 0:02:57]} 3. Bb5 {[%clk 0:01:02]}  a6 {[%clk 0:02:57]} 4. Ba4 {[%clk 0:01:03]}  Nf6 {[%clk 0:02:56]} 5. O-O {[%clk 0:01:02]}  Be7 {[%clk 0:02:57]} 6. Re1 {[%clk 0:01:02]}  b5 {[%clk 0:02:57]} 7. Bb3 {[%clk 0:01:02]}  d6 {[%clk 0:02:58]} 8. c3 {[%clk 0:01:03]}  O-O {[%clk 0:02:58]} 9. h3 {[%clk 0:01:03]}  Nb8 {[%clk 0:02:57]} 10. d4 {[%clk 0:01:02]}  Nbd7 {[%clk 0:02:58]} 11. Nbd2 {[%clk 0:01:02]}  Bb7 {[%clk 0:02:58]} 12. Bc2 {[%clk 0:01:03]}  Re8 {[%clk 0:02:55]} 13. Nf1 {[%clk 0:01:03]}  Bf8 {[%clk 0:02:54]} 14. Ng3 {[%clk 0:01:04]}  g6 {[%clk 0:02:55]} 15. a4 {[%clk 0:01:04]}  Bg7 {[%clk 0:02:55]} 16. Bd3 {[%clk 0:01:01]}  c6 {[%clk 0:02:56]} 17. Bg5 {[%clk 0:01:00]}  h6 {[%clk 0:02:55]} 18. Bd2 {[%clk 0:01:01]}  Qc7 {[%clk 0:02:55]} 19. Qc2 {[%clk 0:01:01]}  Nb6 {[%clk 0:02:51]} 20. a5 {[%clk 0:01:00]}  Nbd7 {[%clk 0:02:47]} 21. b3 {[%clk 0:01:01]}  d5 {[%clk 0:02:41]} 22. exd5 {[%clk 0:00:55]}  Nxd5 {[%clk 0:02:41]} 23. c4 {[%clk 0:00:53]}  Nf4 {[%clk 0:02:31]} 24. Bxf4 {[%clk 0:00:51]}  exf4 {[%clk 0:02:31]} 25. Ne4 {[%clk 0:00:52]}  bxc4 {[%clk 0:02:26]} 26. bxc4 {[%clk 0:00:52]}  Rad8 {[%clk 0:02:08]} 27. c5 {[%clk 0:00:49]}  Nf6 {[%clk 0:02:05]} 28. Nd6 {[%clk 0:00:49]}  Rxe1+ {[%clk 0:02:03]} 29. Rxe1 {[%clk 0:00:50]}  Nd5 {[%clk 0:01:52]} 30. Ne5 {[%clk 0:00:48]}  Qxa5 {[%clk 0:01:25]} 31. Rb1 {[%clk 0:00:42]}  Ba8 {[%clk 0:01:13]} 32. Bxg6 {[%clk 0:00:42]}  Bxe5 {[%clk 0:00:45]} 33. Bxf7+ {[%clk 0:00:42]}  Kf8 {[%clk 0:00:43]} 34. dxe5 {[%clk 0:00:42]}  Qc3 {[%clk 0:00:30]} 35. Qf5 {[%clk 0:00:34]}  Ne7 {[%clk 0:00:20]} 36. Qf6 {[%clk 0:00:34]}  Rxd6 {[%clk 0:00:10]} 37. Rb8+ {[%clk 0:00:28]} 1-0


[Site "https://www.chess.com"]

[Event "Titled Tuesday Blitz August 22 Late 2023"]
[White "Girel, Joseph"]
[Black "Bazilius, Augustinas"]
[WhiteFideId "36033561"]
[BlackFideId "12832251"]
[WhiteElo "2818"]
[BlackElo "2446"]
[Result "1-0"]
[Round "1"]
[TimeControl "180+1"]
[Date "2023.08.22"]
[WhiteClock "0:02:10"]
[BlackClock "0:00:03"]
[Board "66"]

1. e4 {[%clk 0:03:00]}  c5 {[%clk 0:02:59]} 2. Nf3 {[%clk 0:02:59]}  a6 {[%clk 0:02:58]} 3. a3 {[%clk 0:02:56]}  Nc6 {[%clk 0:02:39]} 4. d4 {[%clk 0:02:56]}  cxd4 {[%clk 0:02:35]} 5. Nxd4 {[%clk 0:02:57]}  Nf6 {[%clk 0:02:34]} 6. Nc3 {[%clk 0:02:53]}  d6 {[%clk 0:02:32]} 7. Bg5 {[%clk 0:02:49]}  Bd7 {[%clk 0:02:23]} 8. Bxf6 {[%clk 0:02:48]}  gxf6 {[%clk 0:02:21]} 9. Bc4 {[%clk 0:02:49]}  b5 {[%clk 0:02:16]} 10. Bb3 {[%clk 0:02:46]}  e6 {[%clk 0:02:11]} 11. O-O {[%clk 0:02:46]}  Rg8 {[%clk 0:02:05]} 12. Kh1 {[%clk 0:02:46]}  Qb6 {[%clk 0:01:58]} 13. Nxc6 {[%clk 0:02:45]}  Bxc6 {[%clk 0:01:59]} 14. f4 {[%clk 0:02:45]}  f5 {[%clk 0:01:52]} 15. Qe2 {[%clk 0:02:39]}  Bg7 {[%clk 0:01:37]} 16. Nd5 {[%clk 0:02:37]}  Qb7 {[%clk 0:01:14]} 17. c4 {[%clk 0:02:25]}  bxc4 {[%clk 0:01:05]} 18. Bxc4 {[%clk 0:02:23]}  fxe4 {[%clk 0:01:01]} 19. Nb4 {[%clk 0:02:18]}  Bb5 {[%clk 0:00:46]} 20. f5 {[%clk 0:02:09]}  d5 {[%clk 0:00:06]} 21. Bxb5+ {[%clk 0:02:09]}  Qxb5 {[%clk 0:00:06]} 22. Qh5 {[%clk 0:02:10]}  Qd7 {[%clk 0:00:03]} 23. fxe6 {[%clk 0:02:10]}  Qxe6 {[%clk 0:00:04]} 24. Nxd5 {[%clk 0:02:10]}  Bxb2 {[%clk 0:00:03]} 25. Nc7+ {[%clk 0:02:10]} 1-0


[Site "https://www.chess.com"]

[Event "Titled Tuesday Blitz August 22 Late 2023"]
[White "Rangel, Daniel"]
[Black "Harshavardhan G B"]
[WhiteFideId "2124475"]
[BlackFideId "25059009"]
[WhiteElo "2446"]
[BlackElo "2808"]
[Result "0-1"]
[Round "1"]
[TimeControl "180+1"]
[Date "2023.08.22"]
[WhiteClock "0:00:07"]
[BlackClock "0:01:03"]
[Board "67"]

1. d4 {[%clk 0:03:00]}  Nf6 {[%clk 0:02:59]} 2. Nf3 {[%clk 0:03:01]}  e6 {[%clk 0:02:57]} 3. e3 {[%clk 0:02:59]}  c5 {[%clk 0:02:56]} 4. Bd3 {[%clk 0:02:58]}  d5 {[%clk 0:02:53]} 5. b3 {[%clk 0:02:57]}  Nc6 {[%clk 0:02:51]} 6. O-O {[%clk 0:02:57]}  Bd6 {[%clk 0:02:49]} 7. a3 {[%clk 0:02:57]}  cxd4 {[%clk 0:02:47]} 8. exd4 {[%clk 0:02:56]}  O-O {[%clk 0:02:47]} 9. Bb2 {[%clk 0:02:50]}  Ne4 {[%clk 0:02:44]} 10. c4 {[%clk 0:02:44]}  f5 {[%clk 0:02:41]} 11. Nc3 {[%clk 0:02:43]}  Qf6 {[%clk 0:02:38]} 12. cxd5 {[%clk 0:02:36]}  Nxc3 {[%clk 0:02:35]} 13. Bxc3 {[%clk 0:02:31]}  exd5 {[%clk 0:02:35]} 14. Re1 {[%clk 0:02:29]}  f4 {[%clk 0:02:27]} 15. Ne5 {[%clk 0:02:23]}  Bf5 {[%clk 0:02:24]} 16. Bxf5 {[%clk 0:02:07]}  Qxf5 {[%clk 0:02:18]} 17. Qf3 {[%clk 0:02:08]}  Ne7 {[%clk 0:02:05]} 18. Re2 {[%clk 0:01:50]}  Rac8 {[%clk 0:02:03]} 19. Bb4 {[%clk 0:01:50]}  Bxb4 {[%clk 0:02:03]} 20. axb4 {[%clk 0:01:51]}  a6 {[%clk 0:02:03]} 21. h3 {[%clk 0:01:47]}  Rc7 {[%clk 0:02:01]} 22. Rae1 {[%clk 0:01:43]}  h6 {[%clk 0:01:52]} 23. Ng4 {[%clk 0:01:21]}  Nc6 {[%clk 0:01:48]} 24. Qc3 {[%clk 0:01:05]}  f3 {[%clk 0:01:39]} 25. Re3 {[%clk 0:00:17]}  fxg2 {[%clk 0:01:35]} 26. Kxg2 {[%clk 0:00:18]}  h5 {[%clk 0:01:34]} 27. Ne5 {[%clk 0:00:17]}  Qxf2+ {[%clk 0:01:33]} 28. Kh1 {[%clk 0:00:17]}  Nxe5 {[%clk 0:01:10]} 29. Qxc7 {[%clk 0:00:17]}  Nf3 {[%clk 0:01:11]} 30. b5 {[%clk 0:00:08]}  Nxe1 {[%clk 0:01:07]} 31. Rg3 {[%clk 0:00:03]}  Qf1+ {[%clk 0:01:07]} 32. Rg1 {[%clk 0:00:03]}  Qxh3+ {[%clk 0:01:04]} 33. Qh2 {[%clk 0:00:04]}  Qxh2+ {[%clk 0:01:05]} 34. Kxh2 {[%clk 0:00:04]}  Nf3+ {[%clk 0:01:05]} 35. Kg3 {[%clk 0:00:04]}  Nxg1 {[%clk 0:01:06]} 36. Kh4 {[%clk 0:00:05]}  axb5 {[%clk 0:01:06]} 37. b4 {[%clk 0:00:06]}  Rf4+ {[%clk 0:01:06]} 38. Kg5 {[%clk 0:00:06]}  Rxd4 {[%clk 0:01:06]} 39. Kg6 {[%clk 0:00:03]}  h4 {[%clk 0:01:04]} 40. Kf5 {[%clk 0:00:04]}  Re4 {[%clk 0:01:04]} 41. Kg5 {[%clk 0:00:04]}  h3 {[%clk 0:01:04]} 42. Kg6 {[%clk 0:00:05]}  h2 {[%clk 0:01:03]} 43. Kf5 {[%clk 0:00:06]}  h1=Q {[%clk 0:01:03]} 44. Kg5 {[%clk 0:00:06]}  Qh6+ {[%clk 0:01:03]} 45. Kf5 {[%clk 0:00:07]}  Qh5# {[%clk 0:01:03]} 0-1


[Site "https://www.chess.com"]

[Event "Titled Tuesday Blitz August 22 Late 2023"]
[White "Semenenko, Dmytry"]
[Black "Bauman_Guy"]
[WhiteFideId "14118645"]
[WhiteElo "2445"]
[BlackElo "2804"]
[Result "0-1"]
[Round "1"]
[TimeControl "180+1"]
[Date "2023.08.22"]
[WhiteClock "0:00:00"]
[BlackClock "0:00:54"]
[Board "69"]

1. Nf3 {[%clk 0:03:00]}  d5 {[%clk 0:03:00]} 2. c4 {[%clk 0:03:00]}  c6 {[%clk 0:03:01]} 3. e3 {[%clk 0:03:00]}  Nf6 {[%clk 0:03:01]} 4. Nc3 {[%clk 0:03:00]}  g6 {[%clk 0:03:01]} 5. d4 {[%clk 0:02:59]}  Bg7 {[%clk 0:03:01]} 6. Bd3 {[%clk 0:02:59]}  O-O {[%clk 0:03:02]} 7. O-O {[%clk 0:02:59]}  a6 {[%clk 0:03:02]} 8. Ne5 {[%clk 0:02:58]}  Nbd7 {[%clk 0:03:02]} 9. f4 {[%clk 0:02:58]}  e6 {[%clk 0:02:57]} 10. b3 {[%clk 0:02:52]}  Re8 {[%clk 0:02:44]} 11. Bb2 {[%clk 0:02:50]}  c5 {[%clk 0:02:43]} 12. cxd5 {[%clk 0:02:47]}  exd5 {[%clk 0:02:41]} 13. Rc1 {[%clk 0:02:44]}  b5 {[%clk 0:02:39]} 14. Ne2 {[%clk 0:02:33]}  c4 {[%clk 0:02:38]} 15. Bb1 {[%clk 0:02:32]}  Bb7 {[%clk 0:02:36]} 16. Ng3 {[%clk 0:02:27]}  Rc8 {[%clk 0:02:33]} 17. f5 {[%clk 0:02:24]}  Ne4 {[%clk 0:02:28]} 18. fxg6 {[%clk 0:02:12]}  fxg6 {[%clk 0:02:28]} 19. Nf7 {[%clk 0:02:01]}  Qe7 {[%clk 0:02:23]} 20. Nxe4 {[%clk 0:01:58]}  dxe4 {[%clk 0:02:23]} 21. bxc4 {[%clk 0:01:52]}  Rxc4 {[%clk 0:02:20]} 22. Rxc4 {[%clk 0:01:44]}  bxc4 {[%clk 0:02:21]} 23. h4 {[%clk 0:01:11]}  Bd5 {[%clk 0:02:11]} 24. Ng5 {[%clk 0:01:09]}  h6 {[%clk 0:01:55]} 25. Nh3 {[%clk 0:01:08]}  Qxh4 {[%clk 0:01:55]} 26. Nf4 {[%clk 0:01:08]}  Bf7 {[%clk 0:01:55]} 27. Qa4 {[%clk 0:01:06]}  Nf6 {[%clk 0:01:46]} 28. d5 {[%clk 0:00:50]}  Ng4 {[%clk 0:01:46]} 29. Nh3 {[%clk 0:00:46]}  Bxb2 {[%clk 0:01:44]} 30. Qd7 {[%clk 0:00:41]}  Nf6 {[%clk 0:01:27]} 31. Qc6 {[%clk 0:00:33]}  Bxd5 {[%clk 0:01:17]} 32. Qd6 {[%clk 0:00:28]}  Be5 {[%clk 0:01:15]} 33. Qxa6 {[%clk 0:00:25]}  Be6 {[%clk 0:01:10]} 34. Nf4 {[%clk 0:00:22]}  Bf7 {[%clk 0:01:04]} 35. Qc6 {[%clk 0:00:12]}  Qg3 {[%clk 0:00:56]} 36. Bxe4 {[%clk 0:00:09]}  Qxe3+ {[%clk 0:00:54]} 37. Kh1 {[%clk 0:00:00]}  Qxe4 {[%clk 0:00:54]} 0-1


[Site "https://www.chess.com"]

[Event "Titled Tuesday Blitz August 22 Late 2023"]
[White "Carroll, Thomas"]
[Black "Gorovets, Andrey"]
[WhiteFideId "450111"]
[BlackFideId "13504037"]
[WhiteElo "2443"]
[BlackElo "2797"]
[Result "0-1"]
[Round "1"]
[TimeControl "180+1"]
[Date "2023.08.22"]
[WhiteClock "0:00:13"]
[BlackClock "0:00:13"]
[Board "71"]

1. c4 {[%clk 0:03:00]}  c5 {[%clk 0:02:55]} 2. Nc3 {[%clk 0:03:00]}  g6 {[%clk 0:02:55]} 3. g3 {[%clk 0:03:00]}  Bg7 {[%clk 0:02:55]} 4. Bg2 {[%clk 0:03:01]}  Nc6 {[%clk 0:02:55]} 5. e3 {[%clk 0:02:59]}  e6 {[%clk 0:02:44]} 6. Nge2 {[%clk 0:02:59]}  Nge7 {[%clk 0:02:44]} 7. O-O {[%clk 0:02:59]}  O-O {[%clk 0:02:43]} 8. a3 {[%clk 0:03:00]}  d5 {[%clk 0:02:42]} 9. cxd5 {[%clk 0:02:59]}  exd5 {[%clk 0:02:43]} 10. d4 {[%clk 0:02:59]}  c4 {[%clk 0:02:27]} 11. b3 {[%clk 0:02:58]}  Na5 {[%clk 0:02:24]} 12. bxc4 {[%clk 0:02:53]}  dxc4 {[%clk 0:02:25]} 13. Nf4 {[%clk 0:02:41]}  Rb8 {[%clk 0:02:19]} 14. Rb1 {[%clk 0:02:42]}  Nb3 {[%clk 0:02:11]} 15. a4 {[%clk 0:02:34]}  a6 {[%clk 0:02:01]} 16. Ba3 {[%clk 0:02:32]}  b5 {[%clk 0:01:59]} 17. axb5 {[%clk 0:02:21]}  axb5 {[%clk 0:02:00]} 18. Bb4 {[%clk 0:02:20]}  Bb7 {[%clk 0:01:49]} 19. Ne4 {[%clk 0:02:02]}  Re8 {[%clk 0:01:16]} 20. Nc5 {[%clk 0:01:47]}  Bxg2 {[%clk 0:01:10]} 21. Kxg2 {[%clk 0:01:40]}  Nd5 {[%clk 0:01:00]} 22. Nxb3 {[%clk 0:01:32]}  Nxb4 {[%clk 0:00:59]} 23. Nc5 {[%clk 0:01:27]}  Nd5 {[%clk 0:00:57]} 24. Nxd5 {[%clk 0:01:14]}  Qxd5+ {[%clk 0:00:58]} 25. Qf3 {[%clk 0:01:15]}  Qd8 {[%clk 0:00:35]} 26. Qc6 {[%clk 0:01:12]}  Rb6 {[%clk 0:00:32]} 27. Qf3 {[%clk 0:01:04]}  Bf8 {[%clk 0:00:32]} 28. Rb2 {[%clk 0:00:54]}  b4 {[%clk 0:00:22]} 29. Rc1 {[%clk 0:00:48]}  c3 {[%clk 0:00:19]} 30. Rb3 {[%clk 0:00:49]}  Bxc5 {[%clk 0:00:17]} 31. dxc5 {[%clk 0:00:50]}  Rb8 {[%clk 0:00:18]} 32. Qf4 {[%clk 0:00:43]}  Qa5 {[%clk 0:00:16]} 33. c6 {[%clk 0:00:39]}  Rec8 {[%clk 0:00:15]} 34. Qc4 {[%clk 0:00:40]}  Qb6 {[%clk 0:00:15]} 35. Rcb1 {[%clk 0:00:39]}  Qxc6+ {[%clk 0:00:14]} 36. Qxc6 {[%clk 0:00:38]}  Rxc6 {[%clk 0:00:15]} 37. Kf3 {[%clk 0:00:35]}  c2 {[%clk 0:00:13]} 38. Rc1 {[%clk 0:00:35]}  Rd8 {[%clk 0:00:13]} 39. Rb2 {[%clk 0:00:34]}  Rd2 {[%clk 0:00:12]} 40. e4 {[%clk 0:00:34]}  Rc3+ {[%clk 0:00:12]} 41. Kg2 {[%clk 0:00:25]}  b3 {[%clk 0:00:13]} 42. h4 {[%clk 0:00:15]}  Kf8 {[%clk 0:00:12]} 43. h5 {[%clk 0:00:14]}  Ke7 {[%clk 0:00:12]} 44. hxg6 {[%clk 0:00:14]}  hxg6 {[%clk 0:00:12]} 45. g4 {[%clk 0:00:15]}  g5 {[%clk 0:00:12]} 46. Kh2 {[%clk 0:00:13]}  Rxf2+ {[%clk 0:00:12]} 47. Kg1 {[%clk 0:00:12]}  Rd2 {[%clk 0:00:12]} 48. Kf1 {[%clk 0:00:13]}  Rd1+ {[%clk 0:00:12]} 49. Rxd1 {[%clk 0:00:13]}  cxd1=Q+ {[%clk 0:00:13]} 0-1


[Site "https://www.chess.com"]

[Event "Titled Tuesday Blitz August 22 Late 2023"]
[White "Arencibia Monduy, Antonio"]
[Black "Riehle, Marco"]
[WhiteFideId "3507939"]
[BlackFideId "12904392"]
[WhiteElo "2442"]
[BlackElo "2789"]
[Result "1-0"]
[Round "1"]
[TimeControl "180+1"]
[Date "2023.08.22"]
[WhiteClock "0:00:09"]
[BlackClock "0:00:40"]
[Board "73"]

1. e4 {[%clk 0:03:00]}  e5 {[%clk 0:03:00]} 2. Bc4 {[%clk 0:03:00]}  Nf6 {[%clk 0:03:00]} 3. d3 {[%clk 0:03:00]}  c6 {[%clk 0:03:00]} 4. Nf3 {[%clk 0:03:01]}  b5 {[%clk 0:02:59]} 5. Bb3 {[%clk 0:03:01]}  d6 {[%clk 0:02:59]} 6. O-O {[%clk 0:03:01]}  Be7 {[%clk 0:02:56]} 7. c3 {[%clk 0:03:01]}  O-O {[%clk 0:02:57]} 8. Nbd2 {[%clk 0:03:01]}  Be6 {[%clk 0:02:56]} 9. Re1 {[%clk 0:03:01]}  Bxb3 {[%clk 0:02:56]} 10. Qxb3 {[%clk 0:02:57]}  Nbd7 {[%clk 0:02:54]} 11. Nf1 {[%clk 0:02:56]}  Re8 {[%clk 0:02:52]} 12. Ng3 {[%clk 0:02:56]}  h6 {[%clk 0:02:51]} 13. d4 {[%clk 0:02:55]}  Bf8 {[%clk 0:02:51]} 14. a4 {[%clk 0:02:52]}  a6 {[%clk 0:02:48]} 15. axb5 {[%clk 0:02:42]}  axb5 {[%clk 0:02:47]} 16. Rxa8 {[%clk 0:02:43]}  Qxa8 {[%clk 0:02:48]} 17. h3 {[%clk 0:02:32]}  Qb7 {[%clk 0:02:44]} 18. Be3 {[%clk 0:02:25]}  exd4 {[%clk 0:02:41]} 19. Bxd4 {[%clk 0:02:26]}  c5 {[%clk 0:02:41]} 20. Bxf6 {[%clk 0:02:27]}  Nxf6 {[%clk 0:02:41]} 21. Qc2 {[%clk 0:02:21]}  g6 {[%clk 0:02:24]} 22. Qd3 {[%clk 0:02:06]}  Qc6 {[%clk 0:02:20]} 23. c4 {[%clk 0:01:52]}  bxc4 {[%clk 0:02:12]} 24. Qxc4 {[%clk 0:01:53]}  d5 {[%clk 0:02:10]} 25. exd5 {[%clk 0:01:51]}  Rxe1+ {[%clk 0:02:10]} 26. Nxe1 {[%clk 0:01:52]}  Qxd5 {[%clk 0:02:09]} 27. Qc2 {[%clk 0:01:40]}  Bd6 {[%clk 0:02:05]} 28. Nf1 {[%clk 0:01:27]}  Be5 {[%clk 0:01:57]} 29. b3 {[%clk 0:01:20]}  Ne4 {[%clk 0:01:49]} 30. Nf3 {[%clk 0:01:11]}  Bd4 {[%clk 0:01:45]} 31. Ne3 {[%clk 0:00:51]}  Bxe3 {[%clk 0:01:43]} 32. fxe3 {[%clk 0:00:52]}  Kh7 {[%clk 0:01:35]} 33. Qc4 {[%clk 0:00:26]}  Qb7 {[%clk 0:01:30]} 34. Ne5 {[%clk 0:00:22]}  f6 {[%clk 0:01:23]} 35. Nd3 {[%clk 0:00:16]}  Nd2 {[%clk 0:01:15]} 36. Nxc5 {[%clk 0:00:15]}  Qe7 {[%clk 0:01:07]} 37. Qd4 {[%clk 0:00:13]}  h5 {[%clk 0:00:59]} 38. b4 {[%clk 0:00:14]}  Nb1 {[%clk 0:00:58]} 39. Ne4 {[%clk 0:00:14]}  Kg7 {[%clk 0:00:57]} 40. b5 {[%clk 0:00:11]}  Na3 {[%clk 0:00:54]} 41. b6 {[%clk 0:00:10]}  Nb5 {[%clk 0:00:55]} 42. Qc4 {[%clk 0:00:07]}  Nd6 {[%clk 0:00:42]} 43. Nxd6 {[%clk 0:00:06]}  Qxe3+ {[%clk 0:00:42]} 44. Kh1 {[%clk 0:00:03]}  Qe1+ {[%clk 0:00:41]} 45. Kh2 {[%clk 0:00:04]}  Qe5+ {[%clk 0:00:41]} 46. Kg1 {[%clk 0:00:05]}  Qxd6 {[%clk 0:00:40]} 47. Qc7+ {[%clk 0:00:05]}  Qxc7 {[%clk 0:00:40]} 48. bxc7 {[%clk 0:00:06]}  Kh6 {[%clk 0:00:40]} 49. c8=Q {[%clk 0:00:07]}  f5 {[%clk 0:00:41]} 50. Qh8+ {[%clk 0:00:07]}  Kg5 {[%clk 0:00:41]} 51. Qd8+ {[%clk 0:00:08]}  Kh6 {[%clk 0:00:41]} 52. h4 {[%clk 0:00:09]}  f4 {[%clk 0:00:40]} 53. Qh8# {[%clk 0:00:09]} 1-0


[Site "https://www.chess.com"]

[Event "Titled Tuesday Blitz August 22 Late 2023"]
[White "Olsson, William"]
[Black "Kushko, Dmitriy"]
[WhiteFideId "1741721"]
[BlackFideId "14162261"]
[WhiteElo "2441"]
[BlackElo "2767"]
[Result "1-0"]
[Round "1"]
[TimeControl "180+1"]
[Date "2023.08.22"]
[WhiteClock "0:00:10"]
[BlackClock "0:00:00"]
[Board "75"]

1. c4 {[%clk 0:03:00]}  g6 {[%clk 0:02:59]} 2. g3 {[%clk 0:03:00]}  Bg7 {[%clk 0:02:59]} 3. Bg2 {[%clk 0:03:01]}  Nf6 {[%clk 0:02:59]} 4. Nc3 {[%clk 0:03:01]}  O-O {[%clk 0:02:59]} 5. Nf3 {[%clk 0:03:00]}  d6 {[%clk 0:02:59]} 6. O-O {[%clk 0:03:01]}  e5 {[%clk 0:02:59]} 7. b4 {[%clk 0:03:00]}  Nc6 {[%clk 0:02:51]} 8. Rb1 {[%clk 0:02:59]}  Re8 {[%clk 0:02:43]} 9. d3 {[%clk 0:02:59]}  Nd4 {[%clk 0:02:32]} 10. Bg5 {[%clk 0:02:45]}  Ne6 {[%clk 0:02:08]} 11. Bxf6 {[%clk 0:02:41]}  Bxf6 {[%clk 0:02:06]} 12. Nd2 {[%clk 0:02:34]}  h5 {[%clk 0:02:04]} 13. h3 {[%clk 0:02:20]}  h4 {[%clk 0:02:03]} 14. b5 {[%clk 0:01:53]}  hxg3 {[%clk 0:02:00]} 15. fxg3 {[%clk 0:01:54]}  Bg7 {[%clk 0:01:45]} 16. e3 {[%clk 0:01:44]}  Qg5 {[%clk 0:01:23]} 17. Qf3 {[%clk 0:01:44]}  f5 {[%clk 0:01:23]} 18. h4 {[%clk 0:01:30]}  Qh6 {[%clk 0:01:07]} 19. Nd5 {[%clk 0:01:25]}  Bd7 {[%clk 0:01:05]} 20. Qf2 {[%clk 0:01:08]}  Rac8 {[%clk 0:01:02]} 21. e4 {[%clk 0:00:59]}  Nc5 {[%clk 0:00:56]} 22. Qe2 {[%clk 0:00:47]}  c6 {[%clk 0:00:53]} 23. bxc6 {[%clk 0:00:43]}  bxc6 {[%clk 0:00:53]} 24. Ne3 {[%clk 0:00:37]}  Rf8 {[%clk 0:00:46]} 25. Nb3 {[%clk 0:00:32]}  Nxb3 {[%clk 0:00:37]} 26. Rxb3 {[%clk 0:00:32]}  f4 {[%clk 0:00:18]} 27. Ng4 {[%clk 0:00:31]}  Qh5 {[%clk 0:00:18]} 28. Bf3 {[%clk 0:00:32]}  Qh7 {[%clk 0:00:17]} 29. Qg2 {[%clk 0:00:27]}  Rf7 {[%clk 0:00:16]} 30. Rb7 {[%clk 0:00:23]}  Be6 {[%clk 0:00:11]} 31. Rxf7 {[%clk 0:00:22]}  Bxf7 {[%clk 0:00:11]} 32. gxf4 {[%clk 0:00:23]}  exf4 {[%clk 0:00:12]} 33. Qh3 {[%clk 0:00:19]}  Kh8 {[%clk 0:00:11]} 34. Nf6 {[%clk 0:00:17]}  Bxf6 {[%clk 0:00:10]} 35. Qxc8+ {[%clk 0:00:18]}  Kg7 {[%clk 0:00:11]} 36. Qg4 {[%clk 0:00:17]}  Qxh4 {[%clk 0:00:09]} 37. Qxh4 {[%clk 0:00:16]}  Bxh4 {[%clk 0:00:10]} 38. Rb1 {[%clk 0:00:15]}  Kf6 {[%clk 0:00:08]} 39. Bg4 {[%clk 0:00:15]}  Ke5 {[%clk 0:00:08]} 40. Rb7 {[%clk 0:00:13]}  Be8 {[%clk 0:00:08]} 41. Rxa7 {[%clk 0:00:14]}  Kd4 {[%clk 0:00:08]} 42. Ra8 {[%clk 0:00:13]}  Bf7 {[%clk 0:00:05]} 43. Rf8 {[%clk 0:00:13]}  Ke3 {[%clk 0:00:04]} 44. Rxf7 {[%clk 0:00:13]}  g5 {[%clk 0:00:04]} 45. Rf6 {[%clk 0:00:13]}  Bg3 {[%clk 0:00:02]} 46. Rxd6 {[%clk 0:00:12]}  f3 {[%clk 0:00:03]} 47. Rxc6 {[%clk 0:00:11]}  f2+ {[%clk 0:00:02]} 48. Kf1 {[%clk 0:00:12]}  Kxd3 {[%clk 0:00:00]} 49. a4 {[%clk 0:00:10]} 1-0


[Site "https://www.chess.com"]